bitfinex/quotes_ETHUSD_20260219
["timestamp","ask_amount","ask_price","bid_price","bid_amount"]
[1771515805790,2.71623982,1931.9,1930.9,1.29468886]
[1771515806098,2.71623982,1931.9,1930.8,4.11538739]
[1771515806417,19.19896182,1931.6,1930.8,0.001]
[1771515806576,0.633,1931.5,1930.8,0.001]
[1771515807594,1.29439784,1931.4,1930.8,0.001]
[1771515808278,0.633,1931.3,1930.8,0.001]
[1771515808725,4.01046897,1931.7,1930.8,0.001]
[1771515808884,0.633,1931.5,1930.8,0.001]
[1771515809519,4.01046897,1931.7,1930.8,0.001]
[1771515809700,0.633,1931.6,1931.0,2.8196292]
[1771515810895,0.633,1931.6,1930.8,0.001]
[1771515811205,0.633,1931.6,1930.8,4.11537653]
[1771515811711,0.633,1931.5,1930.8,4.11537653]
[1771515811940,0.633,1931.5,1930.8,2.8206292]
[1771515812216,3.34923982,1931.5,1930.8,0.001]
[1771515813714,4.01063766,1931.4,1930.8,0.001]
[1771515814798,2.71623982,1931.3,1930.5,0.001]
[1771515815199,1.92737898,1931.5,1930.5,2.8206292]
[1771515815915,1.92737898,1931.5,1930.7,2.8196292]
[1771515816509,1.92737898,1931.5,1930.9,0.001]
[1771515816722,0.633,1931.4,1930.9,0.001]
[1771515817503,1.29418464,1931.8,1930.9,2.68020078]
[1771515817714,0.634,1931.7,1930.9,2.68020078]
[1771515817895,1.29426382,1931.6,1931.0,1.29466597]
[1771515818101,1.29426382,1931.6,1930.9,3.97489275]
[1771515819005,1.92824776,1931.7,1930.9,3.97489275]
[1771515819329,1.92824776,1931.7,1931.0,2.67920078]
[1771515819330,0.634,1931.7,1931.0,2.67920078]
[1771515819710,1.29398234,1932.1,1931.0,2.67920078]
[1771515819909,1.29398234,1932.1,1931.2,2.67920078]
[1771515819910,0.633,1932.1,1931.2,2.67920078]
[1771515820411,0.633,1932.0,1931.2,2.67920078]
[1771515822118,1.92701455,1932.0,1931.3,1.29446486]
[1771515822707,0.633,1932.0,1931.3,1.29446486]
[1771515823330,1.92699617,1932.0,1931.3,1.29446486]
[1771515823713,0.633,1932.0,1931.3,1.29446486]
[1771515824314,0.633,1932.0,1931.3,3.97366564]
[1771515824643,1.9270017,1932.0,1931.3,3.97366564]
[1771515826418,0.633,1932.0,1931.3,3.97366564]
[1771515826618,1.92700547,1932.0,1931.3,3.97366564]
[1771515827019,2.60396129,1932.5,1931.4,2.67920078]
[1771515827345,0.0011,1933.0,1931.3,1.29446486]
[1771515827346,0.633,1932.7,1931.6,2.67920078]
[1771515827649,2.60396129,1932.7,1931.6,2.67920078]
[1771515827842,0.633,1932.6,1931.6,2.67920078]
[1771515828244,1.29447565,1933.0,1931.6,2.67920078]
[1771515828448,0.633,1932.8,1931.8,2.67920078]
[1771515828645,1.29447565,1933.0,1931.8,2.67920078]
[1771515828847,1.29447565,1933.0,1931.7,1.29419682]
[1771515828848,1.29447565,1933.0,1931.9,0.646]
[1771515829048,0.0011,1933.0,1932.0,2.67920078]
[1771515829346,0.632,1932.9,1932.0,2.67920078]
[1771515830046,0.0011,1933.0,1932.0,2.67920078]
[1771515830348,0.0011,1933.0,1932.4,2.67920078]
[1771515830917,0.00932133,1933.1,1932.5,2.67920078]
[1771515832149,0.632,1933.5,1932.5,2.67920078]
[1771515832335,1.29290885,1933.7,1932.7,2.67920078]
[1771515832536,0.632,1933.6,1932.7,2.67920078]
[1771515833022,2.60396129,1933.5,1932.5,1.29362396]
[1771515833349,2.60396129,1933.5,1932.6,2.67920078]
[1771515833643,0.631,1933.4,1932.6,2.67920078]
[1771515834718,1.29312574,1933.3,1932.6,3.97276251]
[1771515834913,5.80350297,1933.4,1932.6,3.97276251]
[1771515834914,4.52806081,1933.4,1932.6,3.97276251]
[1771515835467,0.631,1933.3,1932.6,3.97276251]
[1771515835820,2.60396129,1933.7,1932.7,2.67920078]
[1771515836048,1.92381773,1933.8,1932.7,2.67920078]
[1771515836253,0.631,1933.8,1932.8,0.645]
[1771515836446,1.29261897,1934.1,1933.0,2.67920078]
[1771515836643,1.29261897,1934.1,1933.2,2.67920078]
[1771515837226,3.89658026,1934.1,1933.2,2.67920078]
[1771515837652,2.60396129,1934.1,1933.2,2.67920078]
[1771515837827,0.631,1934.0,1933.2,2.67920078]
[1771515838436,3.23496129,1934.0,1933.0,1.2932744]
[1771515838635,1.29272454,1933.9,1933.0,2.67920078]
[1771515838881,3.89668583,1933.9,1933.0,2.67920078]
[1771515839165,0.631,1933.8,1933.0,2.67920078]
[1771515839665,3.23496129,1933.8,1933.0,2.67920078]
[1771515840035,3.23496129,1933.8,1932.9,1.29339334]
[1771515840236,3.23496129,1933.8,1932.8,1.93843926]
[1771515840237,2.60396129,1933.7,1932.8,1.93843926]
[1771515840563,2.60396129,1933.7,1932.7,3.97272457]
[1771515840747,1.29292511,1933.6,1932.5,5.17444824]
[1771515840947,2.70522481,1933.5,1932.5,7.73390104]
[1771515841146,2.70522481,1933.5,1932.6,2.5594528]
[1771515841568,0.63,1933.4,1932.6,2.5594528]
[1771515842574,3.33522481,1933.4,1932.4,1.93868859]
[1771515842738,2.70522481,1933.2,1932.4,1.29368859]
[1771515842938,2.70522481,1933.2,1932.3,3.85319334]
[1771515843278,2.70522481,1933.2,1932.4,2.5594528]
[1771515843436,0.63,1933.1,1932.4,2.5594528]
[1771515843640,1.29309835,1933.4,1932.4,2.5594528]
[1771515843641,4.62832316,1933.4,1932.4,2.5594528]
[1771515843841,2.70522481,1933.3,1932.2,3.85331471]
[1771515844068,2.70522481,1933.3,1932.5,0.001]
[1771515844379,2.70632481,1933.3,1932.5,0.001]
[1771515844833,2.70522481,1933.1,1932.5,0.001]
[1771515845036,2.70522481,1933.1,1932.4,0.001]
[1771515845573,3.33522481,1933.0,1932.4,0.001]
[1771515846650,2.61346161,1932.8,1932.4,0.001]
[1771515846882,2.61346161,1932.6,1931.7,1.29418107]
[1771515847184,2.61346161,1932.6,1931.6,5.82091128]
[1771515847185,3.24446161,1932.5,1931.6,4.63562018]
[1771515848169,1.29351248,1932.8,1931.7,2.69739645]
[1771515848365,0.63,1932.6,1931.7,2.69739645]
[1771515849363,1.29366106,1932.5,1931.8,3.99152627]
[1771515849751,1.29366106,1932.5,1931.8,2.69739645]
[1771515850147,3.90712267,1932.5,1931.6,4.6356357]
[1771515850548,0.63,1932.4,1931.7,2.69739645]
[1771515851166,1.29352718,1932.7,1931.9,2.69739645]
[1771515851375,1.29335873,1933.0,1931.9,2.69739645]
[1771515852670,2.61346161,1933.1,1931.9,2.69739645]
[1771515852855,0.63,1933.1,1931.9,2.69739645]
[1771515853454,1.92330153,1933.1,1932.1,2.69739645]
[1771515853762,1.92330153,1933.1,1932.1,3.34139645]
[1771515854472,0.63,1933.1,1932.1,3.34139645]
[1771515855358,1.29332643,1933.0,1932.2,1.29386191]
[1771515855559,3.90678804,1933.0,1932.2,1.29386191]
[1771515855767,2.61346161,1932.9,1932.1,1.93788073]
[1771515855954,2.61346161,1932.9,1931.8,1.29412982]
[1771515856671,0.00822133,1932.3,1931.8,1.29412982]
[1771515857056,0.00822133,1932.3,1931.7,3.99154242]
[1771515857374,0.00822133,1932.3,1931.8,2.69739645]
[1771515857573,0.00822133,1932.3,1931.9,3.99145928]
[1771515860178,1.2945441,1932.9,1932.0,2.69739645]
[1771515860348,0.63,1932.8,1932.0,2.69739645]
[1771515860877,0.0011,1932.9,1932.0,2.69739645]
[1771515861465,0.0011,1932.9,1932.1,1.29392888]
[1771515861670,0.0011,1932.9,1932.2,3.34339645]
[1771515863872,0.0011,1932.9,1932.3,3.9911914]
[1771515864078,0.0011,1932.9,1932.4,2.69739645]
[1771515865877,0.0011,1932.9,1932.5,1.29366106]
[1771515866448,0.0011,1932.9,1932.5,3.99105751]
[1771515867175,2.61456161,1932.9,1932.2,1.93985403]
[1771515867578,2.61346161,1932.7,1931.9,3.99141422]
[1771515868078,1.29359412,1932.6,1931.9,3.99141422]
[1771515868249,3.90705573,1932.6,1931.9,3.99141422]
[1771515868454,3.90705573,1932.6,1931.9,1.29401777]
[1771515868671,2.61346161,1932.6,1931.9,1.29401777]
[1771515870278,1.29366106,1932.5,1931.9,1.29401777]
[1771515870455,3.90710044,1932.6,1931.9,1.29401777]
[1771515871150,0.628,1932.6,1932.0,2.69739645]
[1771515871351,0.628,1932.7,1932.0,2.69739645]
[1771515871567,3.24146161,1932.7,1931.9,1.29401777]
[1771515871856,3.24146161,1932.7,1931.9,3.99141422]
[1771515872571,3.90799978,1932.9,1932.0,2.69739645]
[1771515872766,2.61456161,1932.9,1932.0,2.69739645]
[1771515872982,0.0011,1932.9,1932.1,2.69739645]
[1771515873280,1.29451536,1932.9,1932.1,2.69739645]
[1771515873462,3.90797697,1932.9,1932.1,2.69739645]
[1771515874075,0.0011,1932.9,1932.1,2.69739645]
[1771515874577,0.0011,1932.9,1932.2,3.99125836]
[1771515875176,0.0011,1932.8,1932.2,3.99125836]
[1771515876198,0.0011,1932.8,1932.3,2.69739645]
[1771515876694,0.0011,1932.8,1932.4,1.293728]
[1771515877298,0.0011,1932.8,1932.4,3.6850762]
[1771515877467,0.0011,1933.0,1932.5,2.3913482]
[1771515878892,0.0011,1933.0,1932.6,1.29359412]
[1771515879772,0.0011,1933.0,1932.5,1.29365018]
[1771515880972,0.0011,1933.0,1932.4,5.17478443]
[1771515881896,2.55110121,1933.0,1932.1,2.3913482]
[1771515882073,2.55110121,1933.0,1932.1,3.68527708]
[1771515882770,2.55110121,1933.0,1932.2,2.3913482]
[1771515882771,0.0011,1933.0,1932.2,2.3913482]
[1771515883166,0.0011,1933.0,1932.4,2.3913482]
[1771515885066,2.55110121,1933.0,1932.3,1.29379495]
[1771515885469,3.84445981,1933.0,1932.3,3.68514315]
[1771515885880,2.55110121,1933.0,1932.4,2.3913482]
[1771515886495,0.0011,1933.0,1932.4,2.3913482]
[1771515886708,0.0011,1933.0,1932.5,2.3913482]
[1771515886891,2.64209777,1933.8,1932.5,2.3913482]
[1771515886892,2.55000121,1933.7,1932.5,2.3913482]
[1771515887074,2.55000121,1933.6,1932.5,2.3913482]
[1771515887470,2.55000121,1933.6,1932.7,2.3913482]
[1771515887471,2.55000121,1933.4,1932.7,2.3913482]
[1771515889502,0.626,1933.6,1932.7,2.3913482]
[1771515889903,1.91893114,1933.6,1932.8,1.29346026]
[1771515890107,1.91893114,1933.6,1932.9,2.3913482]
[1771515890281,4.47003235,1933.6,1932.9,2.3913482]
[1771515891407,2.55000121,1933.5,1932.8,3.68480846]
[1771515891607,1.92003031,1933.6,1932.9,2.3913482]
[1771515891814,4.47003152,1933.6,1932.9,2.3913482]
[1771515892024,4.47003152,1933.6,1932.9,3.68470406]
[1771515893313,2.55000121,1933.5,1932.9,1.29335586]
[1771515893505,2.55000121,1933.5,1932.8,1.29341052]
[1771515893685,2.55000121,1933.5,1932.8,3.68475872]
[1771515893881,1.29305886,1933.4,1932.8,3.68475872]
[1771515894113,3.17710121,1933.6,1932.9,2.3913482]
[1771515894308,0.0011,1933.6,1932.9,2.3913482]
[1771515896004,0.0011,1933.6,1933.0,1.29332643]
[1771515896280,2.55110121,1933.6,1933.0,1.29332643]
[1771515896478,2.55110121,1933.6,1933.0,3.68467463]
[1771515896708,2.55110121,1933.6,1933.0,1.29332643]
[1771515898213,3.84402921,1933.6,1932.9,7.56465394]
[1771515899213,2.55110121,1933.6,1933.0,2.3913482]
[1771515899716,3.84403606,1933.6,1933.0,2.3913482]
[1771515899910,2.55000121,1933.5,1932.9,5.17330574]
[1771515900115,3.84300481,1933.5,1932.9,5.17330574]
[1771515900317,0.0011,1933.6,1933.0,2.3913482]
[1771515900523,5.16977992,1934.4,1932.9,1.29339334]
[1771515900524,2.52603163,1934.1,1933.1,2.4376637]
[1771515900698,2.52603163,1934.0,1933.2,0.652]
[1771515900896,1.29259325,1934.1,1932.9,1.29339334]
[1771515900897,2.52603163,1933.8,1932.9,1.29339334]
[1771515901199,2.52603163,1933.6,1932.9,3.73105704]
[1771515901410,2.62127566,1933.9,1933.0,2.4376637]
[1771515901411,2.52603163,1933.8,1933.0,2.4376637]
[1771515901722,3.15303163,1933.8,1933.0,2.4376637]
[1771515901889,2.52603163,1933.8,1933.0,2.4376637]
[1771515902095,4.44582604,1933.8,1933.2,2.4376637]
[1771515902424,4.44582866,1933.8,1933.2,2.4376637]
[1771515902923,2.52603163,1933.7,1933.0,1.94528851]
[1771515903122,2.52603163,1933.7,1933.0,0.652]
[1771515903321,2.52603163,1933.7,1932.9,3.73102112]
[1771515903691,2.52603163,1933.7,1932.8,1.29340708]
[1771515904416,2.52603163,1933.5,1932.8,1.29340708]
[1771515904716,2.52603163,1933.5,1933.0,0.001]
[1771515904910,3.82004071,1933.7,1933.0,2.4386637]
[1771515905107,0.627,1933.6,1933.0,2.4386637]
[1771515905604,2.52713163,1933.7,1933.0,2.4386637]
[1771515905806,0.0011,1933.7,1933.0,2.4386637]
[1771515906318,0.0011,1933.7,1933.1,3.73092323]
[1771515907040,0.0011,1933.7,1933.2,2.39191963]
[1771515907391,0.0011,1933.7,1933.1,1.94525953]
[1771515907595,2.56016059,1933.7,1933.1,1.94525953]
[1771515907992,0.0011,1933.7,1933.1,4.33717916]
[1771515909826,0.0011,1933.7,1933.2,2.39191963]
[1771515910394,0.627,1934.2,1933.5,2.39191963]
[1771515910807,1.91952738,1934.2,1933.5,2.39191963]
[1771515911129,2.55906059,1934.1,1933.5,2.39191963]
[1771515911427,2.55906059,1934.1,1933.2,2.39191963]
[1771515911729,2.55906059,1934.1,1933.1,0.652]
[1771515911940,2.55906059,1934.1,1933.0,1.29432028]
[1771515912222,2.55906059,1933.9,1933.1,2.39191963]
[1771515912428,1.29252738,1934.2,1933.3,2.39191963]
[1771515912429,2.55906059,1934.1,1933.3,2.39191963]
[1771515912746,3.18606059,1934.0,1933.1,3.68517916]
[1771515913036,3.18606059,1934.0,1933.1,1.29325953]
[1771515913631,3.18606059,1934.0,1933.1,3.68517916]
[1771515914206,3.18606059,1934.0,1933.1,1.29325953]
[1771515914509,2.55906059,1933.8,1933.0,7.56614317]
[1771515914707,3.85176002,1934.0,1933.1,2.39191963]
[1771515915219,4.47771908,1934.0,1933.2,2.39191963]
[1771515915614,2.55906059,1933.9,1933.1,0.652]
[1771515916238,2.55906059,1933.8,1933.0,1.29432643]
[1771515916415,2.55906059,1933.6,1933.0,1.29432643]
[1771515917212,2.55906059,1933.6,1933.0,0.001]
[1771515917538,2.55906059,1933.6,1932.9,0.001]
[1771515917539,2.55906059,1933.4,1932.9,0.001]
[1771515917711,2.55906059,1933.4,1932.9,1.29436982]
[1771515918037,0.626,1933.4,1932.9,1.29436982]
[1771515918454,1.91911966,1933.4,1932.9,0.001]
[1771515918619,3.85218025,1933.4,1932.9,0.001]
[1771515919010,4.47912767,1933.4,1932.9,0.001]
[1771515919635,2.55906059,1933.3,1932.9,0.001]
[1771515920039,4.47912767,1933.4,1932.9,0.001]
[1771515920445,6.1034609,1933.7,1932.9,2.39291963]
[1771515920446,3.85191884,1933.7,1932.9,2.39291963]
[1771515920636,0.627,1933.6,1932.9,2.39291963]
[1771515920940,3.18606059,1933.6,1932.9,2.39291963]
[1771515921146,0.627,1933.6,1933.1,0.001]
[1771515921314,0.6281,1933.6,1933.1,0.001]
[1771515921516,0.0011,1933.6,1933.1,2.39291963]
[1771515921917,2.55906059,1934.0,1933.2,2.39191963]
[1771515922218,1.91966426,1934.0,1933.2,2.39191963]
[1771515922626,4.47872485,1934.0,1933.3,1.29312574]
[1771515922951,2.55906059,1933.9,1933.2,1.29319263]
[1771515923118,2.55906059,1933.9,1933.1,1.29422448]
[1771515925039,2.55906059,1933.8,1933.1,3.68614411]
[1771515925918,2.55906059,1933.8,1933.1,2.39291963]
[1771515926120,2.55906059,1933.8,1933.1,0.001]
[1771515926324,2.55906059,1933.7,1933.0,0.001]
[1771515927035,3.8519857,1933.6,1933.0,0.001]
[1771515927434,0.627,1933.5,1933.0,2.39291963]
[1771515927634,3.18606059,1933.5,1933.0,0.001]
[1771515928839,3.18706059,1933.6,1933.0,0.001]
[1771515929150,1.29299198,1933.5,1933.0,0.001]
[1771515929452,8.35888136,1933.6,1933.0,0.001]
[1771515930153,4.4799857,1933.6,1933.0,0.001]
[1771515930952,0.628,1933.6,1933.0,2.39291963]
[1771515931153,0.628,1933.6,1933.1,1.29325953]
[1771515931333,1.29286691,1933.7,1933.1,3.68517916]
[1771515931334,0.628,1933.7,1933.1,3.68517916]
[1771515931521,3.18706059,1933.7,1933.0,0.001]
[1771515931721,3.18706059,1933.7,1932.8,0.001]
[1771515932082,2.55906059,1933.3,1932.8,0.001]
[1771515932249,2.55906059,1933.1,1932.8,0.001]
[1771515932632,2.55906059,1933.1,1932.3,0.001]
[1771515932833,2.55906059,1933.1,1932.3,3.68671054]
[1771515933362,3.85237575,1933.1,1932.3,3.68671054]
[1771515933663,0.628,1933.0,1932.3,3.68671054]
[1771515933952,3.85237575,1933.1,1932.3,3.68671054]
[1771515934151,0.628,1933.0,1932.3,3.68671054]
[1771515935156,3.18706059,1933.0,1932.3,0.001]
[1771515935356,4.48038702,1933.0,1932.9,0.001]
[1771515935533,2.55906059,1932.9,1932.2,0.001]
[1771515935732,2.55906059,1932.9,1932.8,0.001]
[1771515935951,2.55906059,1932.9,1932.2,0.001]
[1771515936357,2.55906059,1932.9,1932.6,0.001]
[1771515936528,2.55906059,1932.9,1932.2,0.001]
[1771515937445,2.29359822,1932.7,1932.2,0.001]
[1771515937651,0.629,1932.6,1932.2,0.001]
[1771515938172,0.629,1932.6,1932.0,0.001]
[1771515938173,2.29359822,1932.5,1932.0,0.001]
[1771515938646,0.629,1932.6,1932.0,0.001]
[1771515939060,2.92259822,1932.6,1932.0,0.001]
[1771515939270,0.629,1932.5,1932.0,2.3210722]
[1771515939472,1.92267216,1932.5,1932.0,3.61504033]
[1771515939760,0.629,1932.5,1932.0,3.61506373]
[1771515939975,0.629,1932.5,1930.9,0.001]
[1771515939976,2.29359822,1931.9,1930.9,0.001]
[1771515940258,2.29359822,1931.8,1930.9,2.3200722]
[1771515940859,2.29359822,1931.7,1930.7,0.65]
[1771515941060,2.29359822,1931.7,1930.8,2.3200722]
[1771515941438,1.29426382,1931.6,1930.8,2.3200722]
[1771515941645,1.29426382,1931.6,1930.8,3.61483035]
[1771515941843,2.29359822,1932.0,1930.9,2.3200722]
[1771515943459,1.29391708,1932.2,1931.0,1.29466597]
[1771515943637,1.29391708,1932.2,1931.2,2.3200722]
[1771515943840,1.29391708,1932.2,1931.4,2.3200722]
[1771515944575,1.29391708,1932.2,1931.5,0.651]
[1771515944576,2.29359822,1932.1,1931.5,0.651]
[1771515945332,2.29359822,1932.1,1931.3,0.65]
[1771515945536,2.29359822,1931.9,1931.2,0.65]
[1771515946764,2.29359822,1931.9,1930.8,3.61482284]
[1771515946938,2.29359822,1931.8,1930.8,0.65]
[1771515947133,2.56810652,1931.9,1930.7,0.65]
[1771515947134,2.29359822,1931.6,1930.7,0.65]
[1771515947535,3.58792905,1931.5,1930.7,0.65]
[1771515947951,2.29359822,1931.4,1930.6,0.001]
[1771515948160,2.29359822,1931.4,1930.6,0.651]
[1771515948362,2.29359822,1931.4,1930.5,0.001]
[1771515948675,2.29359822,1931.2,1930.5,0.001]
[1771515948841,2.29359822,1931.2,1930.4,0.001]
[1771515949038,2.29359822,1931.2,1930.4,0.651]
[1771515949241,2.29359822,1931.2,1930.4,0.001]
[1771515949483,2.29359822,1931.2,1930.4,0.651]
[1771515949684,3.58819715,1931.1,1930.4,0.651]
[1771515950499,2.29359822,1931.0,1930.4,0.651]
[1771515950642,2.29359822,1931.0,1930.4,0.001]
[1771515951467,2.29359822,1930.8,1930.4,0.001]
[1771515952365,1.29473302,1930.9,1930.4,0.001]
[1771515952975,2.29359822,1930.8,1930.4,0.001]
[1771515953799,1.29486714,1930.7,1930.4,0.001]
[1771515954503,3.5883983,1930.8,1930.4,0.001]
[1771515954658,5.17878811,1931.0,1930.4,0.001]
[1771515955288,3.58826419,1931.1,1930.4,0.001]
[1771515955289,3.58821402,1931.1,1930.4,0.001]
[1771515955686,2.29359822,1931.0,1930.5,0.649]
[1771515956963,5.17669362,1931.8,1930.5,0.649]
[1771515956964,2.29359822,1931.5,1930.5,0.649]
[1771515957159,2.29359822,1931.5,1930.5,2.9690722]
[1771515957367,2.29359822,1931.5,1930.6,2.3200722]
[1771515957562,3.5879467,1931.5,1930.7,1.29486714]
[1771515957870,5.17669362,1931.8,1930.7,1.29486714]
[1771515957871,7.47016565,1931.8,1930.8,2.3200722]
[1771515958062,2.29359822,1931.8,1930.8,2.3200722]
[1771515958270,1.29412982,1931.8,1930.8,2.3200722]
[1771515959080,3.58772804,1931.8,1930.9,1.581]
[1771515959288,2.29359822,1931.7,1931.0,1.581]
[1771515960263,1.29426382,1931.6,1931.1,1.581]
[1771515961098,3.73729303,1931.6,1931.1,1.581]
[1771515961301,2.44302921,1931.4,1931.1,0.648]
[1771515961474,1.29426382,1931.6,1931.1,0.648]
[1771515961679,3.73726634,1931.7,1931.1,0.648]
[1771515961876,3.73726634,1931.7,1930.7,2.46656965]
[1771515962080,2.44302921,1931.6,1930.5,1.29499929]
[1771515962296,2.44302921,1931.6,1930.4,7.64784227]
[1771515962297,2.44302921,1931.4,1930.6,0.648]
[1771515962470,2.44302921,1931.4,1930.6,1.581]
[1771515962668,2.44302921,1931.4,1930.7,1.581]
[1771515962963,1.29424138,1931.7,1930.8,2.46656965]
[1771515963167,1.29418211,1931.8,1930.8,2.46656965]
[1771515963389,0.0011,1931.7,1930.8,2.46656965]
[1771515964272,0.0011,1931.7,1930.9,1.29473302]
[1771515965403,0.0011,1931.7,1931.0,2.46656965]
[1771515966272,0.0011,1931.7,1931.1,3.76116858]
[1771515966471,0.0011,1931.7,1931.2,0.648]
[1771515967138,0.0011,1932.0,1931.3,2.55999872]
[1771515967297,2.56444288,1931.9,1931.3,0.648]
[1771515967798,0.0011,1932.0,1931.4,2.55999872]
[1771515968281,0.0011,1932.0,1931.5,1.29433083]
[1771515968596,0.0011,1932.0,1931.5,3.85432955]
[1771515968899,0.0011,1932.0,1931.6,2.55999872]
[1771515969777,1.29356022,1932.7,1931.6,2.55999872]
[1771515969979,2.56444288,1932.6,1931.6,2.55999872]
[1771515970303,2.56444288,1932.6,1931.7,1.581]
[1771515970494,1.29356393,1932.7,1931.9,2.55999872]
[1771515971076,3.85800681,1932.7,1931.9,2.55999872]
[1771515971777,2.56444288,1932.6,1932.0,1.581]
[1771515972586,3.85806398,1932.6,1932.1,1.29392888]
[1771515973274,1.29357052,1932.7,1932.1,1.29392888]
[1771515973481,0.0011,1932.8,1932.2,2.55999872]
[1771515974378,0.0011,1933.1,1932.3,2.55999872]
[1771515974579,0.0011,1933.1,1932.5,2.55999872]
[1771515974781,0.0011,1933.1,1932.6,0.649]
[1771515974989,0.0011,1933.1,1932.7,0.933]
[1771515980123,0.0011,1933.0,1932.8,1.581]
[1771515980902,0.0011,1933.5,1932.9,2.55999872]
[1771515981080,3.85849408,1933.6,1932.8,1.29345584]
[1771515981385,3.85849408,1933.6,1933.0,1.94330764]
[1771515981911,3.85849408,1933.6,1933.1,0.649]
[1771515982146,3.85847776,1933.6,1933.1,1.581]
[1771515982615,3.85848668,1933.6,1933.1,1.581]
[1771515982780,0.0011,1933.6,1933.1,1.581]
[1771515984320,0.0011,1933.6,1933.1,2.87425461]
[1771515984492,2.56554288,1933.6,1932.8,3.85342206]
[1771515984688,2.56554288,1933.6,1932.9,1.581]
[1771515984887,2.56554288,1933.6,1932.9,4.14099872]
[1771515984888,0.0011,1933.6,1932.9,4.14099872]
[1771515985220,0.0011,1933.8,1933.0,2.55999872]
[1771515985787,0.0011,1933.8,1933.2,2.55999872]
[1771515985999,0.0011,1933.8,1933.1,1.29325953]
[1771515986000,2.56554288,1933.8,1933.3,1.581]
[1771515986214,2.56554288,1933.8,1933.0,1.2932726]
[1771515986417,2.56554288,1933.8,1933.1,1.581]
[1771515986793,2.56554288,1933.8,1932.9,1.2933397]
[1771515986993,2.56554288,1933.8,1933.0,1.581]
[1771515988321,3.85838707,1933.8,1933.1,1.29325953]
[1771515988530,2.56444288,1933.7,1932.9,3.85335881]
[1771515988906,2.56444288,1933.7,1933.0,1.581]
[1771515989640,2.56444288,1933.7,1933.0,4.14099872]
[1771515990336,1.29292511,1933.6,1933.0,5.43427535]
[1771515990534,2.56444288,1933.7,1933.0,5.43427535]
[1771515990836,3.85731605,1933.7,1933.0,5.43427535]
[1771515991016,2.56444288,1933.7,1933.0,5.43427535]
[1771515991219,3.85730456,1933.7,1933.0,5.43427535]
[1771515991419,3.85840456,1933.7,1933.0,5.43427535]
[1771515992533,3.85840456,1933.7,1933.1,2.55999872]
[1771515992534,0.0011,1933.7,1933.1,2.55999872]
[1771515993535,0.0011,1933.7,1933.3,2.55999872]
[1771515994303,0.0011,1933.8,1933.5,2.55999872]
[1771515994509,0.0011,1933.8,1933.6,0.65]
[1771515995552,0.0011,1934.0,1933.6,0.65]
[1771515995747,0.0011,1934.0,1933.6,3.20999872]
[1771515996255,0.0011,1934.0,1933.7,2.55999872]
[1771515996452,0.0011,1934.0,1933.8,1.29279139]
[1771515996756,0.0011,1934.0,1933.9,0.932]
[1771516000547,0.0011,1934.0,1933.9,1.585]
[1771516000936,0.0011,1934.0,1933.9,2.87772454]
[1771516001456,0.0011,1934.0,1933.9,1.585]
[1771516001659,0.0011,1934.0,1933.9,1.586]
[1771516002175,0.0011,1934.0,1933.9,2.87872454]
[1771516002451,1.29532403,1934.5,1933.9,2.87872454]
[1771516002452,0.003,1934.5,1934.0,2.56612547]
[1771516002652,3.73247417,1935.3,1934.2,2.56612547]
[1771516002852,3.73247417,1935.3,1934.4,2.56612547]
[1771516003059,2.44068479,1935.2,1934.5,0.654]
[1771516003254,2.44068479,1935.2,1934.2,2.56612547]
[1771516003464,2.44068479,1935.2,1933.9,1.29272454]
[1771516003465,2.44068479,1935.2,1934.3,1.586]
[1771516004065,2.44068479,1935.0,1934.1,7.73631867]
[1771516004266,2.44068479,1934.8,1934.2,1.586]
[1771516005165,2.44068479,1934.8,1934.0,1.29260549]
[1771516005374,2.44068479,1934.8,1934.3,1.586]
[1771516006265,1.29219,1934.7,1934.3,1.586]
[1771516006772,3.73272701,1935.0,1934.3,5.44458227]
[1771516007463,3.73272701,1935.0,1934.4,2.56612547]
[1771516007642,0.0011,1935.1,1934.4,2.56612547]
[1771516007842,1.29302529,1935.1,1934.4,2.56612547]
[1771516008279,0.0011,1935.1,1934.6,2.56612547]
[1771516008492,0.0011,1935.1,1934.7,3.22012547]
[1771516008838,0.09085186,1935.4,1934.8,2.56612547]
[1771516009163,3.73203886,1936.0,1934.8,2.56612547]
[1771516009164,1.930429,1936.0,1934.8,2.56612547]
[1771516009482,1.930429,1936.0,1934.5,1.29232359]
[1771516009483,1.930429,1935.8,1935.0,2.56612547]
[1771516010163,2.04772451,1935.6,1935.1,0.654]
[1771516010671,1.29152244,1935.7,1935.1,0.654]
[1771516010871,1.29152244,1935.7,1934.9,2.56612547]
[1771516010872,2.04784559,1935.6,1934.7,2.56612547]
[1771516011081,2.04784559,1935.4,1934.7,3.85831408]
[1771516011265,2.04784559,1935.4,1934.8,0.653]
[1771516012166,2.04784559,1935.4,1934.9,1.29205643]
[1771516012573,11.76738923,1936.3,1935.0,2.56612547]
[1771516012806,2.04798238,1936.1,1935.0,2.56612547]
[1771516013095,2.04798238,1936.1,1935.1,2.56612547]
[1771516013467,2.04798238,1936.1,1935.2,4.15012547]
[1771516013665,1.29123615,1936.2,1935.3,2.56612547]
[1771516013998,5.16470516,1936.3,1935.3,2.56612547]
[1771516013999,5.16449984,1936.3,1935.3,2.56612547]
[1771516014201,1.00789544,1938.1,1935.6,2.56612547]
[1771516014382,1.00789544,1938.1,1936.2,2.56612547]
[1771516014383,2.04800173,1937.6,1936.2,2.56612547]
[1771516014589,1.29005624,1937.9,1936.4,2.56612547]
[1771516014590,2.16741076,1937.4,1936.4,2.56612547]
[1771516014890,2.155062,1937.6,1936.4,2.56612547]
[1771516015062,2.155062,1937.6,1936.5,1.584]
[1771516015258,2.155062,1937.6,1936.6,2.56612547]
[1771516015571,2.155062,1937.6,1936.1,2.7269171]
[1771516015572,2.16704157,1937.3,1936.3,2.56612547]
[1771516015774,2.16704157,1937.3,1936.4,0.653]
[1771516015983,2.16704157,1937.3,1936.3,2.56612547]
[1771516016197,1.29058902,1937.1,1936.4,0.653]
[1771516016373,1.29058902,1937.1,1936.3,0.653]
[1771516016374,3.45763059,1937.1,1936.3,0.653]
[1771516016570,3.45763059,1937.1,1936.2,0.653]
[1771516016966,3.45763059,1937.1,1936.0,3.85742179]
[1771516017179,1.29058902,1937.1,1936.2,2.56612547]
[1771516017490,3.45723439,1937.1,1936.2,2.56612547]